[Event "New Zealand Rapid Championship"]
[Site "Wellington"]
[Date "2023.01.11"]
[Round "3.7"]
[White "Cummings, Nick"]
[Black "Nyberg, Michael"]
[Result "1-0"]
[TimeControl "25+5"]
[WhiteFideId "4301218"]
[BlackFideId "4301064"]
[WhiteElo "2038"]
[BlackElo "1951"]

1. Nf3 {[%clk 00:25:08]} Nf6 {[%clk 00:25:01]} {[%emt 00:00:09]} 2. c4 {[%clk
00:25:12]} {[%emt 00:00:03]} c6 {[%clk 00:24:59]} {[%emt 00:00:05]} 3. g3
{[%clk 00:25:09]} {[%emt 00:00:08]} d5 {[%clk 00:24:58]} {[%emt 00:00:07]} 4.
Bg2 {[%clk 00:25:10]} {[%emt 00:00:04]} Nbd7 {[%clk 00:24:49]} {[%emt
00:00:14]} 5. b3 {[%clk 00:24:12]} {[%emt 00:01:03]} e6 {[%clk 00:24:29]}
{[%emt 00:00:24]} 6. O-O {[%clk 00:24:12]} {[%emt 00:00:05]} Bd6 {[%clk
00:24:28]} {[%emt 00:00:07]} 7. d3 {[%clk 00:23:58]} {[%emt 00:00:19]} h5
{[%clk 00:24:04]} {[%emt 00:00:28]} 8. Bg5 {[%clk 00:22:54]} {[%emt 00:01:08]}
Qa5 {[%clk 00:23:34]} {[%emt 00:00:36]} 9. Nbd2 {[%clk 00:21:21]} {[%emt
00:01:39]} Nf8 {[%clk 00:23:17]} {[%emt 00:00:23]} 10. e4 {[%clk 00:20:19]}
{[%emt 00:01:06]} dxe4 {[%clk 00:22:34]} {[%emt 00:00:48]} 11. Nxe4 {[%clk
00:19:11]} {[%emt 00:01:12]} Nxe4 {[%clk 00:22:02]} {[%emt 00:00:38]} 12. dxe4
{[%clk 00:19:14]} {[%emt 00:00:03]} Be7 {[%clk 00:21:30]} {[%emt 00:00:37]} 13.
Bxe7 {[%clk 00:18:57]} {[%emt 00:00:22]} Kxe7 {[%clk 00:21:33]} {[%emt
00:00:01]} 14. e5 {[%clk 00:18:50]} {[%emt 00:00:12]} Qc7 {[%clk 00:21:20]}
{[%emt 00:00:18]} 15. Qd2 {[%clk 00:17:28]} {[%emt 00:01:27]} Ng6 {[%clk
00:20:55]} {[%emt 00:00:29]} 16. Qg5+ {[%clk 00:17:05]} {[%emt 00:00:28]} Ke8
{[%clk 00:20:48]} {[%emt 00:00:12]} 17. Rad1 {[%clk 00:16:43]} {[%emt
00:00:25]} Qe7 {[%clk 00:20:29]} {[%emt 00:00:25]} 18. Qe3 {[%clk 00:15:47]}
{[%emt 00:01:00]} Bd7 {[%clk 00:19:46]} {[%emt 00:00:49]} 19. Rd2 {[%clk
00:15:48]} {[%emt 00:00:05]} c5 {[%clk 00:19:27]} {[%emt 00:00:25]} 20. Rfd1
{[%clk 00:15:46]} {[%emt 00:00:06]} Bc6 {[%clk 00:19:23]} {[%emt 00:00:09]} 21.
Rd6 {[%clk 00:15:33]} {[%emt 00:00:18]} Bxf3 {[%clk 00:18:03]} {[%emt
00:01:25]} 22. Bxf3 {[%clk 00:15:19]} {[%emt 00:00:18]} Rc8 {[%clk 00:18:06]}
{[%emt 00:00:02]} 23. Bg2 {[%clk 00:11:39]} {[%emt 00:03:47]} Qc7 {[%clk
00:17:28]} {[%emt 00:00:41]} 24. f4 {[%clk 00:11:31]} {[%emt 00:00:13]} Ne7
{[%clk 00:17:21]} {[%emt 00:00:13]} 25. Qd3 {[%clk 00:11:05]} {[%emt 00:00:30]}
Nf5 {[%clk 00:16:18]} {[%emt 00:01:09]} 26. Rd7 {[%clk 00:10:46]} {[%emt
00:00:23]} Qa5 {[%clk 00:16:21]} {[%emt 00:00:03]} 27. Bxb7 {[%clk 00:09:17]}
{[%emt 00:01:35]} Rb8 {[%clk 00:15:19]} {[%emt 00:01:06]} 28. Bc6 {[%clk
00:09:03]} {[%emt 00:00:19]} 1-0

[Event "New Zealand Rapid Championship"]
[Site "Wellington"]
[Date "2023.01.11"]
[Round "3.8"]
[White "Perrin, Brent"]
[Black "Langford, Joshua"]
[Result "0-1"]
[TimeControl "25+5"]
[WhiteFideId "451380"]
[BlackFideId "4314557"]
[WhiteElo "1856"]
[BlackElo "1843"]

1. e4 {[%clk 00:25:09]} {[%emt 00:17:25]} c6 {[%clk 00:25:05]} {[%emt
00:00:06]} 2. d4 {[%clk 00:25:10]} {[%emt 00:00:04]} d5 {[%clk 00:25:09]}
{[%emt 00:00:01]} 3. exd5 {[%clk 00:25:13]} {[%emt 00:00:03]} cxd5 {[%clk
00:25:13]} 4. Bd3 {[%clk 00:25:16]} {[%emt 00:00:01]} Nc6 {[%clk 00:25:17]} 5.
c3 {[%clk 00:25:13]} {[%emt 00:00:08]} Qc7 {[%clk 00:25:21]} {[%emt 00:00:02]}
6. h3 {[%clk 00:25:05]} {[%emt 00:00:13]} g6 {[%clk 00:25:15]} {[%emt
00:00:11]} 7. Nf3 {[%clk 00:25:02]} {[%emt 00:00:07]} Bf5 {[%clk 00:25:10]}
{[%emt 00:00:10]} 8. O-O {[%clk 00:24:51]} {[%emt 00:00:19]} e6 {[%clk
00:25:09]} {[%emt 00:00:04]} 9. Re1 {[%clk 00:23:08]} {[%emt 00:01:47]} Nf6
{[%clk 00:24:33]} {[%emt 00:00:41]} 10. Bg5 {[%clk 00:21:13]} {[%emt 00:02:00]}
Bg7 {[%clk 00:23:56]} {[%emt 00:00:42]} 11. Bxf5 {[%clk 00:21:12]} {[%emt
00:00:07]} gxf5 {[%clk 00:23:55]} {[%emt 00:00:06]} 12. Nbd2 {[%clk 00:20:27]}
{[%emt 00:00:49]} Ne4 {[%clk 00:23:47]} {[%emt 00:00:13]} 13. Nxe4 {[%clk
00:19:45]} {[%emt 00:00:46]} fxe4 {[%clk 00:23:49]} {[%emt 00:00:03]} 14. Nh2
{[%clk 00:19:20]} {[%emt 00:00:31]} f5 {[%clk 00:22:47]} {[%emt 00:01:07]} 15.
Nf1 {[%clk 00:18:44]} {[%emt 00:00:40]} Kd7 {[%clk 00:20:27]} {[%emt 00:02:25]}
16. Rc1 {[%clk 00:17:03]} {[%emt 00:01:49]} Rhg8 {[%clk 00:20:10]} {[%emt
00:00:19]} 17. b4 {[%clk 00:15:28]} {[%emt 00:01:40]} Bf8 {[%clk 00:16:39]}
{[%emt 00:03:36]} 18. Qh5 {[%clk 00:14:05]} {[%emt 00:01:28]} Bd6 {[%clk
00:13:36]} {[%emt 00:03:09]} 19. Qf7+ {[%clk 00:12:23]} {[%emt 00:01:46]} Ne7
{[%clk 00:13:33]} {[%emt 00:00:08]} 20. Bxe7 {[%clk 00:11:58]} {[%emt
00:00:29]} Bxe7 {[%clk 00:13:36]} {[%emt 00:00:03]} 21. c4 {[%clk 00:10:55]}
{[%emt 00:01:08]} Raf8 {[%clk 00:13:10]} {[%emt 00:00:31]} 22. Qh5 {[%clk
00:10:33]} {[%emt 00:00:28]} dxc4 {[%clk 00:12:46]} {[%emt 00:00:29]} 23. b5
{[%clk 00:08:17]} {[%emt 00:02:20]} Rg5 {[%clk 00:11:12]} {[%emt 00:01:39]} 24.
Qxh7 {[%clk 00:07:22]} {[%emt 00:00:59]} Rfg8 {[%clk 00:11:10]} {[%emt
00:00:08]} 25. Ne3 {[%clk 00:06:42]} {[%emt 00:00:44]} R5g7 {[%clk 00:09:03]}
{[%emt 00:02:13]} 26. Qh5 {[%clk 00:06:14]} {[%emt 00:00:29]} Qf4 {[%clk
00:09:06]} {[%emt 00:00:07]} 27. g3 {[%clk 00:03:50]} {[%emt 00:02:29]} Bh4
{[%clk 00:07:20]} {[%emt 00:01:51]} 28. Ng2 {[%clk 00:02:36]} {[%emt 00:01:26]}
Rxg3 {[%clk 00:05:11]} {[%emt 00:02:07]} 29. fxg3 {[%clk 00:02:14]} {[%emt
00:00:25]} Qxg3 {[%clk 00:05:05]} {[%emt 00:00:11]} 30. Re2 {[%clk 00:00:50]}
{[%emt 00:01:30]} f4 {[%clk 00:02:59]} {[%emt 00:02:11]} 31. Kf1 {[%clk
00:00:43]} {[%emt 00:00:11]} f3 {[%clk 00:02:32]} {[%emt 00:00:32]} 32. Qh7+
{[%clk 00:00:06]} {[%emt 00:00:42]} Rg7 {[%clk 00:01:55]} {[%emt 00:00:41]} 33.
Qxe4 {[%clk 00:00:07]} {[%emt 00:00:04]} fxe2+ {[%clk 00:01:25]} {[%emt
00:00:34]} 34. Qxe2 {[%clk 00:00:11]} {[%emt 00:00:01]} Rf7+ {[%clk 00:01:09]}
{[%emt 00:00:22]} 35. Kg1 {[%clk 00:00:15]} Rf2 {[%clk 00:01:08]} {[%emt
00:00:05]} 36. Qe4 {[%clk 00:00:18]} {[%emt 00:00:02]} Rxg2+ {[%clk 00:00:41]}
{[%emt 00:00:32]} 37. Qxg2 {[%clk 00:00:22]} Qe3+ {[%clk 00:00:44]} {[%emt
00:00:02]} 38. Kh2 {[%clk 00:00:21]} {[%emt 00:00:05]} Qf4+ {[%clk 00:00:41]}
{[%emt 00:00:08]} 39. Kh1 {[%clk 00:00:15]} {[%emt 00:00:11]} Qxc1+ {[%clk
00:00:45]} {[%emt 00:00:02]} 40. Kh2 {[%clk 00:00:19]} Qf4+ {[%clk 00:00:08]}
{[%emt 00:00:43]} 41. Kh1 {[%clk 00:00:22]} {[%emt 00:00:01]} Qxd4 {[%clk
00:00:08]} {[%emt 00:00:06]} 42. Qxb7+ {[%clk 00:00:24]} {[%emt 00:00:02]} Kd6
{[%clk 00:00:11]} {[%emt 00:00:03]} 43. Qc6+ {[%clk 00:00:24]} {[%emt
00:00:05]} Ke5 {[%clk 00:00:14]} {[%emt 00:00:02]} 44. Qc7+ {[%clk 00:00:20]}
{[%emt 00:00:10]} Ke4 {[%clk 00:00:13]} {[%emt 00:00:05]} 45. Qh7+ {[%clk
00:00:16]} {[%emt 00:00:09]} Ke3 {[%clk 00:00:13]} {[%emt 00:00:09]} 46. Qh6+
{[%clk 00:00:19]} Kd3 {[%clk 00:00:13]} {[%emt 00:00:05]} 47. Qh7+ {[%clk
00:00:06]} {[%emt 00:00:18]} Qe4+ {[%clk 00:00:17]} 48. Qxe4+ {[%clk 00:00:10]}
{[%emt 00:00:01]} Kxe4 {[%clk 00:00:21]} 49. Kg2 {[%clk 00:00:12]} {[%emt
00:00:02]} c3 {[%clk 00:00:25]} {[%emt 00:00:02]} 0-1

[Event "New Zealand Rapid Championship"]
[Site "Wellington"]
[Date "2023.01.11"]
[Round "3.9"]
[White "Winsley, Nicholas"]
[Black "Archer, Ollie"]
[Result "1-0"]
[TimeControl "25+5"]
[WhiteFideId "4315146"]
[BlackFideId "4317262"]
[WhiteElo "1854"]
[BlackElo "1806"]

1. e4 {[%clk 00:25:06]} {[%emt 00:00:03]} c6 {[%clk 00:25:08]} {[%emt
00:00:02]} 2. d4 {[%clk 00:25:10]} {[%emt 00:00:01]} d5 {[%clk 00:25:12]}
{[%emt 00:00:01]} 3. Nc3 {[%clk 00:25:14]} {[%emt 00:00:01]} dxe4 {[%clk
00:25:15]} {[%emt 00:00:02]} 4. Nxe4 {[%clk 00:25:18]} Nd7 {[%clk 00:25:18]}
{[%emt 00:00:02]} 5. Nf3 {[%clk 00:25:01]} {[%emt 00:00:21]} Ngf6 {[%clk
00:25:21]} {[%emt 00:00:02]} 6. Nxf6+ {[%clk 00:24:56]} {[%emt 00:00:10]} Nxf6
{[%clk 00:25:24]} {[%emt 00:00:02]} 7. Bc4 {[%clk 00:24:53]} {[%emt 00:00:08]}
Bf5 {[%clk 00:25:20]} {[%emt 00:00:08]} 8. O-O {[%clk 00:24:37]} {[%emt
00:00:21]} e6 {[%clk 00:25:22]} {[%emt 00:00:03]} 9. Bf4 {[%clk 00:24:31]}
{[%emt 00:00:12]} Be7 {[%clk 00:25:22]} {[%emt 00:00:05]} 10. Qe2 {[%clk
00:23:52]} {[%emt 00:00:44]} O-O {[%clk 00:25:06]} {[%emt 00:00:20]} 11. Rad1
{[%clk 00:23:36]} {[%emt 00:00:21]} h6 {[%clk 00:24:58]} {[%emt 00:00:13]} 12.
Ne5 {[%clk 00:22:55]} {[%emt 00:00:46]} Nd5 {[%clk 00:24:47]} {[%emt 00:00:16]}
13. Bg3 {[%clk 00:22:43]} {[%emt 00:00:18]} a5 {[%clk 00:23:42]} {[%emt
00:01:10]} 14. a4 {[%clk 00:22:38]} {[%emt 00:00:10]} Bd6 {[%clk 00:22:06]}
{[%emt 00:01:41]} 15. c3 {[%clk 00:21:21]} {[%emt 00:01:22]} Qc7 {[%clk
00:21:36]} {[%emt 00:00:35]} 16. Bd3 {[%clk 00:20:47]} {[%emt 00:00:39]} Bxd3
{[%clk 00:21:29]} {[%emt 00:00:12]} 17. Qxd3 {[%clk 00:20:44]} {[%emt
00:00:08]} Rad8 {[%clk 00:21:10]} {[%emt 00:00:24]} 18. Nc4 {[%clk 00:17:23]}
{[%emt 00:03:26]} Bxg3 {[%clk 00:20:41]} {[%emt 00:00:33]} 19. fxg3 {[%clk
00:17:04]} {[%emt 00:00:23]} c5 {[%clk 00:20:37]} {[%emt 00:00:10]} 20. Na3
{[%clk 00:15:44]} {[%emt 00:01:25]} cxd4 {[%clk 00:20:01]} {[%emt 00:00:41]} 21.
Nb5 {[%clk 00:15:32]} {[%emt 00:00:17]} Qb6 {[%clk 00:19:20]} {[%emt 00:00:45]}
22. Qxd4 {[%clk 00:15:28]} {[%emt 00:00:08]} Qxd4+ {[%clk 00:18:57]} {[%emt
00:00:29]} 23. Rxd4 {[%clk 00:15:31]} {[%emt 00:00:10]} Ne3 {[%emt 00:01:03]}
24. Rf2 {[%clk 00:14:49]} {[%emt 00:00:45]} e5 {[%clk 00:17:44]} {[%emt
00:00:13]} 25. Rdd2 {[%clk 00:13:53]} {[%emt 00:01:01]} Nc4 {[%clk 00:17:26]}
{[%emt 00:00:23]} 26. Rde2 {[%clk 00:13:47]} {[%emt 00:00:11]} Rd3 {[%clk
00:15:13]} {[%emt 00:02:18]} 27. b3 {[%clk 00:12:07]} {[%emt 00:01:45]} Ne3
{[%clk 00:15:03]} {[%emt 00:00:15]} 28. Re1 {[%clk 00:11:18]} {[%emt 00:00:54]}
Rfd8 {[%clk 00:13:22]} {[%emt 00:01:46]} 29. Rf3 {[%clk 00:10:27]} {[%emt
00:00:57]} Ng4 {[%clk 00:12:35]} {[%emt 00:00:52]} 30. h3 {[%clk 00:09:46]}
{[%emt 00:00:46]} Rd1 {[%clk 00:11:02]} {[%emt 00:01:38]} 31. Rff1 {[%clk
00:09:31]} {[%emt 00:00:19]} Rxe1 {[%clk 00:10:52]} {[%emt 00:00:16]} 32. Rxe1
{[%clk 00:09:34]} {[%emt 00:00:02]} Nf6 {[%clk 00:10:37]} {[%emt 00:00:20]} 33.
Rxe5 {[%clk 00:09:34]} {[%emt 00:00:06]} Rd1+ {[%clk 00:09:57]} {[%emt
00:00:44]} 34. Kh2 {[%clk 00:09:05]} {[%emt 00:00:34]} Rb1 {[%clk 00:09:38]}
{[%emt 00:00:24]} 35. Nd4 {[%clk 00:09:06]} {[%emt 00:00:03]} Rc1 {[%clk
00:09:32]} {[%emt 00:00:10]} 36. Rxa5 {[%clk 00:09:02]} {[%emt 00:00:09]} Rxc3
{[%clk 00:09:32]} {[%emt 00:00:05]} 37. Rb5 {[%clk 00:08:48]} {[%emt 00:00:19]}
Rd3 {[%clk 00:09:13]} {[%emt 00:00:24]} 38. Nf3 {[%clk 00:08:38]} {[%emt
00:00:15]} Rd7 {[%clk 00:08:58]} {[%emt 00:00:20]} 39. b4 {[%clk 00:08:37]}
{[%emt 00:00:06]} Ne4 {[%clk 00:08:18]} {[%emt 00:00:46]} 40. a5 {[%clk
00:08:15]} {[%emt 00:00:27]} Nc3 {[%clk 00:07:43]} {[%emt 00:00:40]} 41. Rc5
{[%clk 00:08:09]} {[%emt 00:00:11]} Nd1 {[%clk 00:06:58]} {[%emt 00:00:49]} 42.
b5 {[%clk 00:06:58]} {[%emt 00:01:17]} Ne3 {[%clk 00:06:35]} {[%emt 00:00:28]}
43. b6 {[%clk 00:06:37]} {[%emt 00:00:26]} Nd5 {[%clk 00:05:05]} {[%emt
00:01:35]} 44. Ne5 {[%clk 00:06:33]} {[%emt 00:00:09]} Rd8 {[%clk 00:05:07]}
{[%emt 00:00:03]} 45. g4 {[%clk 00:06:00]} {[%emt 00:00:38]} f6 {[%clk
00:04:59]} {[%emt 00:00:13]} 46. Nf3 {[%clk 00:06:00]} {[%emt 00:00:05]} Rd7
{[%clk 00:04:50]} {[%emt 00:00:14]} 47. Nd4 {[%clk 00:05:28]} {[%emt 00:00:36]}
g6 {[%clk 00:04:03]} {[%emt 00:00:53]} 48. Ne6 {[%clk 00:04:56]} {[%emt
00:00:36]} Kf7 {[%clk 00:04:02]} {[%emt 00:00:06]} 49. Nc7 {[%clk 00:04:54]}
{[%emt 00:00:07]} Nb4 {[%clk 00:01:41]} {[%emt 00:02:26]} 50. a6 {[%clk
00:02:51]} {[%emt 00:02:08]} bxa6 {[%clk 00:01:08]} {[%emt 00:00:39]} 51. b7
{[%clk 00:02:28]} {[%emt 00:00:28]} Rd8 {[%clk 00:01:10]} {[%emt 00:00:02]} 52.
Ne6 {[%clk 00:00:57]} {[%emt 00:01:36]} Rb8 {[%clk 00:00:57]} {[%emt 00:00:19]}
53. Nd8+ {[%clk 00:00:49]} {[%emt 00:00:13]} Kg7 {[%emt 00:01:01]} 54. Rc8
{[%clk 00:00:49]} Nc6 {[%clk 00:00:14]} 55. Rc7+ {[%clk 00:00:41]} {[%emt
00:00:10]} Ne7 {[%clk 00:00:10]} {[%emt 00:00:14]} 56. Nc6 {[%clk 00:00:38]}
{[%emt 00:00:03]} 1-0

[Event "New Zealand Rapid Championship"]
[Site "Wellington"]
[Date "2023.01.11"]
[Round "3.11"]
[White "Dive, Russell J"]
[Black "Zhu, David Junyang"]
[Result "1-0"]
[TimeControl "25+5"]
[WhiteTitle "IM"]
[WhiteFideId "4300106"]
[BlackFideId "4311132"]
[WhiteElo "2367"]
[BlackElo "1470"]

1. Nf3 {[%clk 00:25:09]} Nf6 {[%clk 00:25:04]} {[%emt 00:00:07]} 2. c4 {[%clk
00:25:13]} {[%emt 00:00:01]} g6 {[%clk 00:25:03]} {[%emt 00:00:07]} 3. g3
{[%clk 00:25:16]} {[%emt 00:00:01]} Bg7 {[%clk 00:25:05]} {[%emt 00:00:03]} 4.
Bg2 {[%clk 00:25:20]} d6 {[%clk 00:25:09]} {[%emt 00:00:01]} 5. O-O {[%clk
00:25:22]} {[%emt 00:00:02]} O-O {[%clk 00:24:57]} {[%emt 00:00:17]} 6. Nc3
{[%clk 00:25:26]} {[%emt 00:00:01]} Nc6 {[%clk 00:24:54]} {[%emt 00:00:08]} 7.
Rb1 {[%clk 00:25:23]} {[%emt 00:00:08]} a5 {[%clk 00:24:47]} {[%emt 00:00:12]}
8. a3 {[%clk 00:25:27]} {[%emt 00:00:01]} e5 {[%clk 00:24:25]} {[%emt
00:00:26]} 9. d3 {[%clk 00:25:29]} {[%emt 00:00:04]} Nh5 {[%clk 00:23:57]}
{[%emt 00:00:34]} 10. b4 {[%clk 00:25:23]} {[%emt 00:00:10]} axb4 {[%clk
00:23:53]} {[%emt 00:00:09]} 11. axb4 {[%clk 00:25:26]} {[%emt 00:00:02]} f5
{[%clk 00:23:36]} {[%emt 00:00:21]} 12. Qb3 {[%clk 00:25:30]} {[%emt 00:00:02]}
Kh8 {[%clk 00:22:43]} {[%emt 00:00:57]} 13. c5 {[%clk 00:25:26]} {[%emt
00:00:16]} Nd4 {[%clk 00:22:21]} {[%emt 00:00:21]} 14. Nxd4 {[%clk 00:25:26]}
{[%emt 00:00:05]} exd4 {[%clk 00:22:20]} {[%emt 00:00:05]} 15. Nb5 {[%clk
00:25:23]} {[%emt 00:00:07]} dxc5 {[%clk 00:21:41]} {[%emt 00:00:44]} 16. bxc5
{[%clk 00:25:24]} {[%emt 00:00:04]} f4 {[%clk 00:20:37]} {[%emt 00:01:10]} 17.
Bb2 {[%clk 00:24:03]} {[%emt 00:01:25]} fxg3 {[%clk 00:20:10]} {[%emt
00:00:32]} 18. hxg3 {[%clk 00:23:36]} {[%emt 00:00:32]} c6 {[%clk 00:18:56]}
{[%emt 00:01:19]} 19. Nd6 {[%clk 00:23:35]} {[%emt 00:00:06]} Qe7 {[%clk
00:18:33]} {[%emt 00:00:28]} 20. Bf3 {[%clk 00:22:15]} {[%emt 00:01:25]} Ra5
{[%clk 00:17:09]} {[%emt 00:01:29]} 21. Qb4 {[%clk 00:22:11]} {[%emt 00:00:08]}
Ra7 {[%clk 00:16:21]} {[%emt 00:00:53]} 22. Bxd4 {[%clk 00:22:12]} {[%emt
00:00:04]} Bxd4 {[%clk 00:16:22]} {[%emt 00:00:04]} 23. Qxd4+ {[%clk 00:22:15]}
{[%emt 00:00:02]} Qg7 {[%clk 00:16:25]} {[%emt 00:00:02]} 24. Qxg7+ {[%clk
00:21:43]} {[%emt 00:00:37]} Nxg7 {[%emt 00:00:08]} 25. Rb4 {[%clk 00:21:29]}
{[%emt 00:00:14]} Nf5 {[%clk 00:15:57]} {[%emt 00:00:36]} 26. Nxc8 {[%clk
00:21:08]} {[%emt 00:00:26]} Rxc8 {[%clk 00:16:00]} {[%emt 00:00:02]} 27. Rfb1
{[%clk 00:21:11]} {[%emt 00:00:02]} Rc7 {[%clk 00:15:53]} {[%emt 00:00:11]} 28.
Re4 {[%clk 00:21:02]} {[%emt 00:00:14]} Re7 {[%clk 00:15:37]} {[%emt 00:00:22]}
29. Rxe7 {[%clk 00:20:59]} {[%emt 00:00:08]} Nxe7 {[%emt 00:00:06]} 30. d4
{[%clk 00:20:57]} {[%emt 00:00:02]} Nd5 {[%clk 00:15:16]} {[%emt 00:00:30]} 31.
Bxd5 {[%clk 00:20:57]} {[%emt 00:00:05]} cxd5 {[%clk 00:15:21]} 32. Rb6 {[%clk
00:20:56]} {[%emt 00:00:07]} Ra4 {[%clk 00:15:08]} {[%emt 00:00:17]} 33. e3
{[%clk 00:20:58]} {[%emt 00:00:10]} Kg8 {[%clk 00:14:45]} {[%emt 00:00:20]} 34.
Rxb7 {[%clk 00:21:00]} {[%emt 00:00:03]} 1-0

[Event "New Zealand Rapid Championship"]
[Site "Wellington"]
[Date "2023.01.11"]
[Round "3.12"]
[White "Winter, Ryan"]
[Black "Ha, Timothy Huy Minh"]
[Result "0-1"]
[TimeControl "25+5"]
[WhiteFideId "4306295"]
[BlackFideId "12417246"]
[WhiteElo "2117"]
[BlackElo "1549"]

1. e4 {[%clk 00:25:08]} {[%emt 00:00:02]} c6 {[%clk 00:25:09]} {[%emt
00:00:02]} 2. d4 {[%clk 00:25:10]} {[%emt 00:00:03]} d5 {[%clk 00:25:13]}
{[%emt 00:00:02]} 3. e5 {[%clk 00:25:12]} {[%emt 00:00:03]} c5 {[%clk
00:25:16]} 4. dxc5 {[%clk 00:25:15]} {[%emt 00:00:03]} e6 {[%clk 00:25:19]}
{[%emt 00:00:01]} 5. a3 {[%clk 00:25:15]} {[%emt 00:00:06]} Bxc5 {[%clk
00:25:21]} {[%emt 00:00:02]} 6. b4 {[%clk 00:25:17]} {[%emt 00:00:03]} Bb6
{[%clk 00:25:14]} {[%emt 00:00:12]} 7. Bb2 {[%clk 00:25:18]} {[%emt 00:00:04]}
Ne7 {[%clk 00:24:48]} {[%emt 00:00:31]} 8. Nf3 {[%clk 00:25:19]} {[%emt
00:00:04]} a5 {[%clk 00:24:24]} {[%emt 00:00:29]} 9. b5 {[%clk 00:24:40]}
{[%emt 00:00:43]} Nd7 {[%clk 00:24:16]} {[%emt 00:00:13]} 10. a4 {[%clk
00:23:12]} {[%emt 00:01:33]} O-O {[%clk 00:24:16]} {[%emt 00:00:06]} 11. Bd3
{[%clk 00:22:52]} {[%emt 00:00:24]} f5 {[%clk 00:23:12]} {[%emt 00:01:09]} 12.
O-O {[%clk 00:22:20]} {[%emt 00:00:37]} Nc5 {[%clk 00:23:00]} {[%emt 00:00:17]}
13. Be2 {[%clk 00:21:36]} {[%emt 00:00:50]} Bd7 {[%clk 00:23:02]} {[%emt
00:00:03]} 14. c4 {[%clk 00:20:09]} {[%emt 00:01:33]} Rc8 {[%clk 00:22:47]}
{[%emt 00:00:18]} 15. Nbd2 {[%clk 00:19:44]} {[%emt 00:00:30]} Ne4 {[%clk
00:21:29]} {[%emt 00:01:23]} 16. Rc1 {[%clk 00:18:49]} {[%emt 00:01:01]} Qe8
{[%clk 00:20:23]} {[%emt 00:01:11]} 17. cxd5 {[%clk 00:17:02]} {[%emt
00:01:53]} Rxc1 {[%clk 00:20:20]} {[%emt 00:00:07]} 18. Qxc1 {[%clk 00:16:57]}
{[%emt 00:00:10]} Nxd5 {[%clk 00:19:52]} {[%emt 00:00:33]} 19. Bc4 {[%clk
00:16:19]} {[%emt 00:00:43]} Nf4 {[%clk 00:18:35]} {[%emt 00:01:21]} 20. Nb3
{[%clk 00:14:38]} {[%emt 00:01:47]} Nxg2 {[%clk 00:16:37]} {[%emt 00:02:03]} 21.
Kxg2 {[%clk 00:14:15]} {[%emt 00:00:24]} Qg6+ {[%clk 00:16:40]} {[%emt
00:00:06]} 22. Kh1 {[%clk 00:14:13]} {[%emt 00:00:07]} Nxf2+ {[%clk 00:16:42]}
{[%emt 00:00:03]} 23. Rxf2 {[%clk 00:14:16]} {[%emt 00:00:02]} Bxf2 {[%clk
00:16:44]} {[%emt 00:00:03]} 24. Qd2 {[%clk 00:07:31]} {[%emt 00:06:50]} Qg4
{[%clk 00:14:57]} {[%emt 00:01:51]} 25. Qe2 {[%clk 00:07:07]} {[%emt 00:00:30]}
Bb6 {[%clk 00:14:47]} {[%emt 00:00:16]} 26. Nbd2 {[%clk 00:04:14]} {[%emt
00:02:58]} Rd8 {[%clk 00:13:30]} {[%emt 00:01:24]} 27. Qg2 {[%clk 00:03:08]}
{[%emt 00:01:08]} Bc8 {[%clk 00:12:47]} {[%emt 00:00:47]} 28. Bc3 {[%clk
00:02:20]} {[%emt 00:00:54]} Be3 {[%clk 00:10:28]} {[%emt 00:02:24]} 29. Bxa5
{[%clk 00:01:13]} {[%emt 00:01:12]} b6 {[%clk 00:10:32]} 30. Bc3 {[%clk
00:01:05]} {[%emt 00:00:13]} Bb7 {[%clk 00:09:37]} {[%emt 00:01:00]} 31. Bxe6+
{[%clk 00:00:51]} {[%emt 00:00:29]} Kh8 {[%clk 00:09:39]} 32. Qxg4 {[%clk
00:00:35]} {[%emt 00:00:14]} fxg4 {[%clk 00:09:43]} {[%emt 00:00:02]} 33. Bxg4
{[%clk 00:00:38]} Bxd2 {[%clk 00:09:39]} {[%emt 00:00:09]} 34. Bb2 {[%clk
00:00:20]} {[%emt 00:00:23]} Bb4 {[%clk 00:09:30]} {[%emt 00:00:14]} 35. Kg2
{[%clk 00:00:07]} {[%emt 00:00:18]} Rd2+ {[%clk 00:09:33]} {[%emt 00:00:02]} 36.
Kg3 {[%clk 00:00:11]} Rxb2 {[%clk 00:09:36]} {[%emt 00:00:07]} 0-1